bitfinex/quotes_ETHUSD_20251023
["timestamp","ask_amount","ask_price","bid_price","bid_amount"]
[1761206662611,0.0002,3889.8,3889.7,11.39051508]
[1761206662822,0.0002,3889.8,3889.7,8.31274273]
[1761206663052,0.0002,3889.8,3889.7,7.85464273]
[1761206663561,0.0002,3889.8,3889.7,0.1288]
[1761206663714,0.0002,3889.8,3889.7,3.4238]
[1761206667016,0.0002,3889.8,3889.7,0.1288]
[1761206667216,0.0002,3889.8,3889.7,3.4218]
[1761206667629,0.0002,3889.8,3889.7,0.1288]
[1761206667847,0.0002,3889.8,3889.7,3.4218]
[1761206668053,0.11,3889.8,3889.7,3.4218]
[1761206668757,0.11,3889.8,3889.7,3.4208]
[1761206668972,0.11,3889.8,3889.7,0.1288]
[1761206669248,0.32499925,3889.8,3889.7,0.246]
[1761206669640,6.08742794,3889.8,3889.7,0.246]
[1761206669831,6.06171953,3889.8,3889.7,0.246]
[1761206670149,6.06171953,3889.8,3889.6,0.002]
[1761206670366,0.13550841,3889.7,3889.6,0.002]
[1761206670565,0.7773312,3889.7,3889.6,0.201]
[1761206670767,0.7773312,3889.7,3889.6,0.002]
[1761206670768,2.3325312,3889.7,3889.6,0.002]
[1761206670967,2.4613312,3889.7,3889.6,0.002]
[1761206674071,2.43562279,3889.7,3889.6,0.002]
[1761206674237,2.30682279,3889.7,3889.6,0.002]
[1761206675947,2.3325312,3889.7,3889.6,0.002]
[1761206676675,2.30682279,3889.7,3889.6,0.002]
[1761206677679,0.75162279,3889.7,3889.6,0.002]
[1761206677878,0.31829084,3889.8,3889.6,0.002]
[1761206678072,0.129,3889.8,3889.6,0.002]
[1761206678679,0.2388,3889.8,3889.6,0.002]
[1761206679276,0.129,3889.8,3889.6,0.002]
[1761206679475,0.1098,3889.7,3889.6,0.002]
[1761206680369,0.129,3889.8,3889.6,0.002]
[1761206680886,0.2388,3889.8,3889.6,0.002]
[1761206681061,0.001,3890.2,3889.6,0.002]
[1761206682166,0.001,3890.2,3889.7,0.4603]
[1761206682483,0.001,3890.2,3889.8,0.13816]
[1761206682987,0.001,3890.2,3889.8,0.59846]
[1761206683867,0.001,3890.2,3889.9,0.4603]
[1761206684755,0.001,3890.2,3890.1,0.2309]
[1761206684956,0.001,3890.2,3889.8,0.13816]
[1761206685885,0.001,3890.2,3889.8,0.59846]
[1761206687390,0.001,3890.2,3889.8,0.13816]
[1761206687580,0.001,3890.2,3889.6,0.002]
[1761206687775,0.001,3890.2,3889.6,0.4623]
[1761206687983,0.001,3890.2,3889.7,3.288]
[1761206688587,0.001,3890.2,3889.8,0.4603]
[1761206689360,0.001,3890.2,3889.9,3.287]
[1761206689660,0.001,3890.2,3890.0,0.37473]
[1761206691192,0.001,3890.2,3890.1,0.1288]
[1761206692366,0.001,3890.2,3890.0,0.37473]
[1761206693024,0.001,3890.2,3890.1,0.4603]
[1761206700127,0.001,3890.2,3890.1,3.030928]
[1761206700343,0.001,3890.2,3890.1,3.95726946]
[1761206700544,0.001,3890.2,3890.1,4.46414946]
[1761206701269,0.001,3890.2,3890.1,4.67264146]
[1761206701417,0.001,3890.2,3890.1,4.21234146]
[1761206701754,0.001,3890.9,3890.4,0.50688]
[1761206702052,0.001,3890.9,3890.8,4.12536551]
[1761206702214,0.001,3890.9,3890.8,7.59286716]
[1761206702414,0.001,3890.9,3890.8,3.4408]
[1761206702613,0.001,3890.9,3890.8,3.312]
[1761206702845,0.001,3890.9,3890.8,3.68697]
[1761206703047,0.001,3890.9,3890.8,6.69483551]
[1761206703211,0.001,3890.9,3890.8,7.20171551]
[1761206704148,0.001,3890.9,3890.8,4.63155]
[1761206704319,0.001,3890.9,3890.8,7.20171551]
[1761206705521,0.0002,3890.9,3890.8,4.63155]
[1761206705722,0.0002,3890.9,3890.8,7.20171551]
[1761206706734,0.0002,3890.9,3890.8,8.75691551]
[1761206708670,1.13133735,3892.7,3890.8,8.75691551]
[1761206708671,1.0,3892.7,3892.6,3.07585703]
[1761206708872,0.087821,3894.6,3892.8,0.50688]
[1761206709081,0.087821,3894.6,3894.5,4.85240371]
[1761206709363,0.087821,3894.6,3894.5,8.09070232]
[1761206709666,0.087821,3894.6,3894.5,2.95752232]
[1761206709828,0.087821,3894.6,3894.5,5.5445]
[1761206710162,0.087821,3894.6,3894.5,8.61910371]
[1761206710958,0.087821,3894.6,3894.5,2.72238]
[1761206711157,0.087821,3894.6,3894.5,3.9903]
[1761206712128,0.087821,3894.6,3894.5,7.09058094]
[1761206712485,0.087821,3894.6,3894.5,7.7739618]
[1761206712785,0.2155,3896.2,3895.1,0.50688]
[1761206712927,0.2155,3896.2,3894.6,1.9929]
[1761206713131,0.2155,3896.2,3894.5,1.05965809]
[1761206713132,0.2155,3895.9,3895.5,0.128]
[1761206713469,0.02570841,3895.8,3894.4,3.012]
[1761206713774,6.13116673,3895.9,3893.8,0.1237]
[1761206713775,0.02570841,3895.5,3894.5,3.012]
[1761206713928,0.4346,3895.5,3894.5,3.012]
[1761206714463,0.2155,3894.6,3894.5,3.012]
[1761206714875,0.6501,3894.6,3893.8,0.1237]
[1761206715048,0.6501,3894.6,3893.9,3.34]
[1761206715243,0.6501,3894.6,3894.0,0.34637]
[1761206715459,0.2155,3895.0,3894.1,3.339]
[1761206715936,0.6501,3895.0,3894.1,3.339]
[1761206716350,0.4346,3894.9,3894.1,3.339]
[1761206717764,0.4346,3894.9,3894.0,3.337]
[1761206717765,1.58090841,3894.8,3894.0,3.337]
[1761206717965,1.58090841,3894.8,3894.1,3.17]
[1761206718140,0.4346,3894.7,3894.1,3.17]
[1761206718334,0.02570841,3894.6,3894.1,3.17]
[1761206718851,0.4346,3894.5,3894.1,3.17]
[1761206719047,0.02570841,3894.4,3894.1,3.17]
[1761206719251,0.4346,3894.5,3894.1,3.17]
[1761206719451,0.4346,3894.4,3894.1,3.17]
[1761206719856,0.4346,3894.8,3894.1,3.17]
[1761206720940,0.4346,3894.8,3894.1,3.487]
[1761206721467,0.4346,3894.8,3894.1,3.17]
[1761206721669,0.001,3894.5,3894.1,3.17]
[1761206722057,0.4346,3894.4,3894.1,3.17]
[1761206723266,0.4346,3894.4,3893.1,0.46338647]
[1761206723465,0.4346,3894.4,3894.3,0.128]
[1761206726148,0.001,3894.5,3894.2,3.342]
[1761206726346,0.4635,3894.4,3894.2,3.342]
[1761206727072,0.001,3894.5,3894.2,3.342]
[1761206727274,0.4635,3894.4,3894.2,3.342]
[1761206728972,0.4585,3894.4,3894.2,3.342]
[1761206729877,0.4577,3894.4,3894.2,3.342]
[1761206733077,0.02570841,3894.3,3894.2,3.342]
[1761206733458,0.48420841,3894.3,3894.2,3.342]
[1761206734066,0.4585,3894.3,3894.2,3.342]
[1761206734264,0.4585,3894.3,3892.1,2.56927518]
[1761206734265,6.10693151,3894.3,3892.8,3.331]
[1761206734576,0.02570841,3894.2,3892.9,4.2387]
[1761206734784,0.48420841,3894.2,3893.0,3.331]
[1761206734987,2.03940841,3894.2,3893.0,3.331]
[1761206735392,0.4585,3894.1,3893.0,3.331]
[1761206735553,0.02570841,3894.0,3893.0,3.331]
[1761206736153,0.1288,3893.8,3893.3,0.1288]
[1761206736357,0.02570841,3893.7,3893.1,0.1288]
[1761206736598,0.48420841,3893.7,3893.1,0.1288]
[1761206736885,0.02570841,3893.6,3893.1,0.1288]
[1761206737190,0.4585,3893.5,3893.1,0.1288]
[1761206737365,0.02570841,3893.4,3893.1,0.1288]
[1761206737764,0.4585,3893.3,3892.0,0.2226]
[1761206737959,0.37740841,3893.2,3892.6,0.1288]
[1761206738378,0.4585,3893.1,3892.6,0.1288]
[1761206738585,0.02570841,3893.0,3892.6,0.1288]
[1761206738957,0.4585,3892.9,3892.6,0.1288]
[1761206739163,0.4585,3892.9,3892.1,3.329]
[1761206739164,0.02570841,3892.8,3892.1,3.329]
[1761206739363,0.15450841,3892.8,3892.3,0.1288]
[1761206739663,0.4585,3892.7,3892.3,0.1288]
[1761206739852,0.02570841,3892.6,3892.3,0.1288]
[1761206740253,0.4585,3892.5,3892.3,0.1288]
[1761206740784,0.1288,3892.8,3892.3,0.1288]
[1761206741087,0.4585,3892.8,3892.4,0.1288]
[1761206741283,0.4585,3892.8,3892.6,0.1288]
[1761206742014,0.02570841,3893.1,3892.6,0.1288]
[1761206742200,0.2229,3893.2,3892.6,0.1288]
[1761206742408,0.2229,3893.2,3893.0,0.1288]
[1761206742777,0.02570841,3893.1,3893.0,0.1288]
[1761206742990,0.02570841,3893.1,3892.8,0.1288]
[1761206743190,0.4585,3893.0,3892.8,0.1288]
[1761206744330,0.2229,3893.2,3892.8,0.1288]
[1761206744527,0.6814,3893.2,3892.8,0.1288]
[1761206744882,0.4585,3893.1,3892.8,0.1288]
[1761206746328,0.2229,3893.2,3892.8,0.1288]
[1761206746527,0.4585,3893.1,3892.8,0.1288]
[1761206746732,0.02570841,3893.0,3891.5,0.4628]
[1761206747030,0.02570841,3893.0,3892.6,0.1288]
[1761206747311,0.4585,3892.9,3892.6,0.1288]
[1761206747490,0.02570841,3892.8,3892.6,0.1288]
[1761206747894,0.4585,3892.7,3892.6,0.1288]
[1761206748130,0.4585,3893.0,3892.6,0.1288]
[1761206749221,0.02570841,3892.9,3892.6,0.1288]
[1761206749810,0.02570841,3893.0,3892.6,0.1288]
[1761206750889,0.48420841,3893.0,3892.6,0.1288]
[1761206751591,0.02570841,3893.5,3892.3,3.326]
[1761206751791,0.4585,3893.4,3892.4,0.40111]
[1761206752012,0.02570841,3893.3,3892.4,0.40111]
[1761206752215,0.2229,3894.0,3892.4,0.40111]
[1761206752424,0.4585,3893.8,3892.5,0.4628]
[1761206752623,0.4585,3893.8,3892.6,0.418991]
[1761206753228,0.2329,3893.9,3892.7,0.4628]
[1761206753400,0.01,3893.9,3892.7,0.4628]
[1761206754488,0.0092,3894.0,3892.7,0.4628]
[1761206754824,0.0092,3894.0,3892.8,0.34508158]
[1761206755224,0.2229,3893.9,3892.8,0.34508158]
[1761206755424,0.2229,3893.9,3892.9,3.7878]
[1761206755724,0.02570841,3894.0,3893.0,3.332]
[1761206755927,0.02570841,3894.0,3893.0,3.7948]
[1761206756227,0.6814,3894.1,3893.1,0.5748]
[1761206756407,0.6814,3894.1,3893.2,0.39068]
[1761206756602,0.02570841,3894.0,3893.2,0.39068]
[1761206757341,0.6814,3894.1,3893.2,0.85348]
[1761206757538,0.001,3894.4,3893.2,0.85348]
[1761206757739,0.2239,3894.4,3893.2,0.39068]
[1761206758053,0.6824,3894.4,3893.3,0.846268]
[1761206758238,0.001,3894.4,3893.3,0.846268]
[1761206758425,0.001,3894.4,3893.4,0.4628]
[1761206760492,0.4289,3894.4,3893.5,3.331]
[1761206760628,0.02570841,3894.3,3893.2,0.4465]
[1761206760829,0.02570841,3894.3,3893.3,2.334]
[1761206761026,0.4279,3894.2,3893.3,2.334]
[1761206761228,0.001,3894.4,3893.4,0.4465]
[1761206761533,0.001,3894.4,3894.1,0.128]
[1761206761728,0.4279,3894.3,3894.1,0.128]
[1761206761973,0.02570841,3894.2,3894.1,0.128]
[1761206762331,0.45360841,3894.2,3894.1,0.128]
[1761206764303,0.4279,3894.2,3894.1,0.128]
[1761206764453,0.001,3894.4,3894.1,0.128]
[1761206764454,0.02570841,3894.3,3894.1,0.128]
[1761206764654,0.62898084,3894.2,3893.2,0.641]
[1761206764876,0.02570841,3894.1,3893.2,0.641]
[1761206766459,0.4279,3894.2,3893.2,1.0875]
[1761206766782,5.75102658,3894.4,3893.2,1.0875]
[1761206766783,0.001,3894.4,3893.3,0.5583]
[1761206767183,0.001,3894.4,3893.4,0.4465]
[1761206768170,0.4289,3894.4,3893.4,0.4465]
[1761206768688,0.02570841,3894.3,3893.3,0.1118]
[1761206769002,0.4279,3894.2,3893.3,0.1118]
[1761206769210,0.4279,3894.2,3893.4,3.329]
[1761206769211,0.02570841,3894.1,3893.4,3.329]
[1761206769709,0.4279,3894.0,3893.4,3.329]
[1761206769891,0.2314,3893.5,3893.4,3.329]
[1761206770376,0.6593,3893.5,3893.4,3.329]
[1761206771267,0.2314,3893.9,3893.4,3.6619]
[1761206771607,0.4279,3893.5,3893.4,3.329]
[1761206771815,0.2314,3894.2,3893.4,3.329]
[1761206772518,0.6593,3894.2,3893.4,3.329]
[1761206773780,0.001,3894.4,3893.4,3.7755]
[1761206774106,0.001,3894.4,3893.5,0.37755]
[1761206774276,0.4289,3894.4,3893.5,0.37755]
[1761206774688,0.4289,3894.4,3894.2,0.128]
[1761206774889,0.4289,3894.4,3894.2,3.456]
[1761206776216,0.001,3894.4,3894.2,3.456]
[1761206776421,0.4289,3894.3,3894.2,3.456]
[1761206777220,0.4289,3894.3,3894.2,0.128]
[1761206777416,0.8568,3894.3,3893.9,3.327]
[1761206777919,0.4289,3894.3,3893.9,3.327]
[1761206778099,0.4279,3894.3,3893.9,3.327]
[1761206778500,0.4299,3894.4,3893.9,3.327]
[1761206778690,0.4289,3894.4,3894.0,0.3327]
[1761206778891,0.4281,3894.4,3894.0,0.3327]
[1761206779083,0.0002,3894.4,3894.0,0.3327]
[1761206779295,0.0002,3894.4,3894.1,3.328]
[1761206779501,0.4279,3894.3,3894.1,3.328]
[1761206779737,0.4311,3894.4,3894.2,0.36607]
[1761206779905,0.4279,3894.3,3894.2,3.328]
[1761206780639,0.4279,3894.3,3894.2,3.33]
[1761206784907,0.4279,3894.3,3893.4,0.002]
[1761206785109,0.4279,3894.3,3893.5,3.333]
[1761206785414,0.4279,3894.3,3893.4,0.002]
[1761206785739,0.2314,3893.5,3893.4,0.002]
[1761206786110,0.68500841,3893.5,3893.4,0.002]
[1761206786340,1.45622555,3893.5,3893.4,0.002]
[1761206786638,1.45622555,3893.5,3893.0,0.002]
[1761206786639,2.25524905,3893.5,3893.0,0.002]
[1761206786839,0.4279,3893.4,3893.0,0.002]
[1761206787146,0.53258841,3893.3,3893.0,0.002]
[1761206787333,0.1288,3893.1,3893.0,0.002]
[1761206787532,0.99395991,3893.1,3893.0,0.002]
[1761206787732,1.92873991,3893.1,3893.0,0.002]
[1761206788266,3.48393991,3893.1,3890.8,0.002]
[1761206788541,3.48393991,3893.1,3892.0,0.1288]
[1761206788542,0.1288,3892.5,3892.0,0.1288]
[1761206788746,0.02570841,3892.4,3892.0,0.1288]
[1761206788944,0.48720841,3892.4,3892.0,0.1288]
[1761206789450,1.00172329,3892.4,3890.8,0.002]
[1761206789618,0.61541637,3892.4,3891.9,0.1288]
[1761206789816,0.4615,3892.3,3891.9,0.1288]
[1761206790014,0.02570841,3892.2,3891.9,0.1288]
[1761206790418,0.4615,3892.1,3891.9,0.1288]
[1761206790721,0.02570841,3892.0,3890.8,0.002]
[1761206790923,0.02570841,3892.0,3891.7,0.1288]
[1761206791237,0.2311,3890.9,3890.8,0.002]
[1761206791436,0.2311,3890.9,3890.8,3.336]
[1761206791630,0.6926,3890.9,3890.8,3.4648]
[1761206792147,0.6926,3890.9,3890.8,3.4638]
[1761206793434,0.4615,3891.1,3890.8,3.4638]
[1761206793626,0.4615,3891.1,3890.8,3.81018]
[1761206793816,0.923,3891.1,3891.0,0.1288]
[1761206795341,0.4615,3891.1,3891.0,0.1288]
[1761206795672,0.4615,3891.5,3891.0,0.1308]
[1761206795974,0.4615,3891.2,3891.0,0.002]
[1761206796473,0.4615,3891.2,3891.1,0.1288]
[1761206796842,0.923,3891.2,3891.1,0.1288]
[1761206797677,0.4615,3891.2,3891.1,0.1288]
[1761206799172,0.4615,3891.5,3891.1,0.1288]
[1761206799377,0.4615,3891.9,3891.1,0.1288]
[1761206799554,0.4615,3891.9,3891.8,0.1288]
[1761206799873,0.4615,3891.9,3891.8,3.4578]
[1761206800378,0.923,3891.9,3891.8,3.4578]
[1761206803368,0.9222,3891.9,3891.8,3.4578]
[1761206806897,0.4615,3891.9,3891.8,3.4578]
[1761206807087,0.4615,3891.9,3891.8,3.80358]
[1761206807476,0.4615,3892.7,3891.8,3.80358]
[1761206807665,0.4615,3892.2,3891.8,3.80358]
[1761206807869,0.4615,3892.2,3891.8,3.67478]
[1761206808112,0.2311,3893.0,3892.1,0.2974]
[1761206808272,0.77120525,3893.0,3892.2,0.78772368]
[1761206808469,0.77120525,3893.0,3892.9,0.1288]
[1761206808671,0.12964018,3893.0,3892.9,3.4518]
[1761206808901,0.4555,3893.3,3892.9,3.4518]
[1761206809102,0.4555,3893.3,3893.2,0.1288]
[1761206809919,0.58640446,3893.3,3893.2,0.1288]
[1761206811119,0.4615,3893.7,3893.2,0.1288]
[1761206811313,0.58640446,3893.4,3893.2,0.1288]
[1761206811514,0.58640446,3893.4,3892.9,3.323]
[1761206811726,0.58640446,3893.4,3893.3,0.1288]
[1761206813328,0.58420446,3893.4,3893.3,0.1288]
[1761206814003,0.13074548,3893.4,3893.3,0.1288]
[1761206814202,0.1282,3894.4,3893.3,0.1288]
[1761206814424,0.58420446,3893.6,3893.4,0.02568449]
[1761206814627,0.58973747,3894.4,3894.3,0.128]
[1761206814923,0.58973747,3894.4,3894.3,3.32]
[1761206815125,1.17947494,3894.4,3894.3,3.448]
[1761206818414,0.71797494,3894.4,3894.3,3.448]
[1761206818613,1.17647494,3894.4,3894.3,3.448]
[1761206821719,0.71797494,3894.4,3894.3,3.448]
[1761206822049,0.71797494,3894.4,3894.3,3.7928]
[1761206822354,0.12823747,3894.4,3894.3,3.7928]
[1761206824316,0.0002,3894.4,3894.3,4.28897855]
[1761206824535,0.0002,3894.4,3894.3,4.2633]
[1761206827034,0.0002,3894.4,3894.3,4.1353]
[1761206827234,0.0002,3894.4,3894.3,4.2633]
[1761206827564,0.0002,3894.4,3894.3,3.7928]
[1761206827947,0.4579,3894.7,3894.3,3.7928]
[1761206828170,0.4579,3894.7,3894.4,0.37928]
[1761206828469,0.4579,3894.7,3894.6,0.128]
[1761206830068,1.06297819,3894.9,3894.6,0.128]
[1761206830270,0.02570841,3894.8,3894.7,0.324]
[1761206830451,0.48420841,3894.8,3894.7,0.324]
[1761206830638,0.48420841,3894.8,3894.7,0.452]
[1761206831037,0.4585,3894.8,3894.7,0.452]
[1761206831238,0.4585,3894.8,3894.7,3.438]
[1761206834753,0.12840325,3894.9,3894.7,3.6538]
[1761206835056,0.77081291,3895.0,3894.7,3.7818]
[1761206835372,0.001,3894.8,3894.7,3.7818]
[1761206835572,0.001,3894.8,3894.7,3.6538]
[1761206835750,0.001,3894.8,3894.7,3.7818]
[1761206835956,0.001,3894.8,3894.7,3.438]
[1761206841290,0.4595,3894.8,3894.7,3.438]
[1761206842377,0.001,3894.8,3894.7,3.438]
[1761206843682,0.4595,3894.8,3894.7,0.128]
[1761206843861,8.66730333,3894.8,3894.3,0.002]
[1761206844061,1.1517496,3894.7,3894.4,1.596]
[1761206844256,1.6102496,3894.7,3894.4,1.596]
[1761206844456,0.4585,3894.6,3894.4,1.596]
[1761206845086,0.02570841,3894.5,3894.4,1.596]
[1761206845488,0.4345,3894.5,3894.4,1.596]
[1761206845852,0.02570841,3894.7,3894.4,1.596]
[1761206846057,0.5635,3894.8,3894.4,1.596]
[1761206846058,0.4345,3894.6,3894.4,1.596]
[1761206847061,0.02570841,3894.5,3894.3,0.002]
[1761206847390,0.02570841,3894.5,3894.4,3.3]
[1761206847590,0.15470841,3894.8,3894.4,3.3]
[1761206847790,0.129,3894.8,3894.4,3.3]
[1761206847999,0.001,3894.8,3894.4,3.3]
[1761206848203,0.4345,3894.7,3894.4,3.3]
[1761206848407,0.4345,3894.7,3894.4,3.6302]
[1761206848697,2.3936385,3894.6,3894.4,3.6302]
[1761206849073,0.451,3894.5,3894.4,3.6302]
[1761206849275,0.451,3894.5,3894.4,3.3]
[1761206849811,2.3936385,3894.6,3894.4,3.3]
[1761206850114,0.451,3894.5,3894.4,3.3]
[1761206851523,0.47670841,3894.5,3894.4,3.296]
[1761206852437,0.47590841,3894.5,3894.4,3.296]
[1761206853338,0.001,3894.8,3894.4,3.6258]
[1761206853704,0.001,3894.8,3894.4,3.6278]
[1761206853933,0.001,3894.8,3894.7,0.128]
[1761206854637,0.452,3894.8,3894.7,0.128]
[1761206856733,0.001,3894.8,3894.7,0.128]
[1761206857140,2.56714637,3895.4,3894.7,0.128]
[1761206857141,2.0,3896.7,3895.1,2.56732818]
[1761206857360,2.0,3896.7,3894.4,3.70610781]
[1761206857361,2.0,3896.7,3896.5,0.1574]
[1761206857655,2.0,3896.7,3896.5,3.5094]
[1761206857820,2.0,3896.7,3896.5,0.6161]
[1761206858007,2.0,3896.7,3896.5,3.5094]
[1761206858210,2.0,3896.7,3896.5,4.11699851]
[1761206858417,2.0,3896.7,3896.5,4.57569851]
[1761206859351,2.0,3896.7,3896.5,4.57469851]
[1761206859747,2.0,3896.7,3896.5,0.76499851]
[1761206859952,2.0,3896.7,3896.2,0.1574]
[1761206860129,2.0,3896.7,3896.3,2.375]
[1761206860476,0.56728324,3896.6,3896.3,2.375]
[1761206860768,0.56728324,3896.6,3895.9,0.1574]
[1761206860769,0.11628324,3896.6,3896.4,3.35]
[1761206861356,0.11628324,3896.6,3896.5,3.35]
[1761206861656,0.56728324,3896.6,3895.9,0.1574]
[1761206861862,0.56728324,3896.6,3896.0,2.675]
[1761206862018,0.56728324,3896.6,3896.0,0.32911]
[1761206862218,0.56728324,3896.6,3895.9,0.1574]
[1761206862531,0.11628324,3896.6,3895.5,0.1574]
[1761206862734,0.451,3896.5,3895.0,0.6161]
[1761206862931,2.56649296,3896.4,3895.0,0.6161]
[1761206863127,0.451,3896.5,3895.1,2.162]
[1761206863332,0.451,3896.4,3895.2,0.27781]
[1761206863834,2.56668068,3896.1,3895.3,0.541]
[1761206864038,2.56686564,3895.9,3894.4,0.4607]
[1761206864239,2.56686564,3895.9,3894.5,1.881]
[1761206864435,0.6672,3895.8,3894.5,1.881]
[1761206864845,0.451,3895.7,3894.5,1.881]
[1761206865041,0.451,3895.7,3894.6,0.23437]
[1761206865259,2.56699866,3895.6,3894.7,2.25]
[1761206865459,0.451,3895.5,3894.7,2.25]
[1761206866042,3.0180651,3895.5,3894.7,2.25]
[1761206866246,0.451,3895.5,3894.7,2.25]
[1761206866444,0.451,3895.4,3894.7,2.25]
[1761206866624,3.0181512,3895.4,3894.7,2.25]
[1761206866829,0.2162,3894.8,3894.4,0.002]
[1761206867155,0.2162,3894.8,3894.7,0.128]
[1761206867353,0.2162,3894.8,3894.7,2.068]
[1761206867856,0.6672,3894.8,3894.7,3.474]
[1761206868225,0.6672,3894.8,3894.7,3.346]
[1761206868628,0.6672,3894.8,3894.4,0.002]
[1761206868834,0.451,3894.7,3894.5,3.474]
[1761206869033,2.0062,3894.7,3894.5,0.128]
[1761206869344,3.01860744,3894.7,3894.4,0.598]
[1761206869545,0.451,3894.6,3894.4,0.598]
[1761206870150,3.01869491,3894.6,3894.4,0.598]
[1761206870459,0.451,3894.6,3894.4,0.47]
[1761206870677,0.451,3894.5,3894.4,0.47]
[1761206873575,0.401,3894.5,3894.4,0.47]
[1761206874236,2.78372942,3894.8,3894.4,0.47]
[1761206874237,0.2162,3894.8,3894.4,0.47]
[1761206874439,4.3386647,3895.2,3894.4,0.598]
[1761206874637,5.15724401,3895.2,3894.7,0.128]
[1761206875475,1.03477931,3895.2,3894.7,0.128]
[1761206875976,0.451,3895.1,3894.7,0.128]
[1761206876778,0.3434,3895.2,3894.7,0.128]
[1761206877441,0.7944,3895.2,3894.7,0.128]
[1761206877869,0.451,3895.1,3894.7,0.128]
[1761206880443,0.2154,3895.2,3894.4,0.47]
[1761206880763,0.2154,3895.2,3894.9,0.128]
[1761206882482,0.6721,3895.2,3894.9,0.128]
[1761206882869,1.16435087,3895.2,3894.9,0.128]
[1761206883067,1.16435087,3895.2,3894.5,0.128]
[1761206883068,2.5676497,3894.7,3894.5,0.128]
[1761206883468,0.4567,3894.6,3894.5,0.128]
[1761206884350,3.02435778,3894.6,3894.4,0.002]
[1761206884755,0.4567,3894.5,3894.4,0.002]
[1761206885903,0.128,3894.8,3894.4,0.002]
[1761206886196,2.56735216,3895.1,3894.7,0.128]
[1761206886370,0.4567,3895.0,3894.4,0.002]
[1761206886567,1.5552,3894.8,3894.6,0.128]
[1761206887258,2.5675262,3894.8,3894.6,0.128]
[1761206887579,0.2154,3895.2,3894.6,0.128]
[1761206887779,0.4567,3894.7,3894.5,0.128]
[1761206888105,2.56772371,3894.5,3894.4,0.002]
[1761206888311,9.8703793,3894.5,3894.4,0.002]
[1761206888496,10.3270793,3894.5,3894.4,0.002]
[1761206889000,10.8339593,3894.5,3894.4,0.002]
[1761206891797,4.57962371,3894.5,3894.4,0.002]
[1761206891999,4.70762371,3894.5,3894.4,0.002]
[1761206892779,1.6832,3894.5,3894.4,0.002]
[1761206892987,5.96385559,3895.2,3894.4,0.002]
[1761206893183,0.31919327,3895.2,3894.4,0.002]
[1761206893391,0.10379327,3895.2,3894.4,0.838]
[1761206893590,0.001,3895.2,3894.4,1.2847]
[1761206893795,0.001,3895.2,3894.5,0.57537]
[1761206895894,0.001,3895.2,3894.6,0.4467]
[1761206896416,0.001,3895.2,3895.1,0.1574]
[1761206896917,0.001,3895.2,3895.1,0.6041]
[1761206899787,0.001,3895.2,3895.1,3.17142818]
[1761206899991,0.001,3895.2,3895.1,3.74532315]
[1761206900710,0.001,3895.2,3895.1,1.17799497]
[1761206901022,0.001,3895.2,3895.1,3.74532315]
[1761206901389,0.0002,3895.2,3895.1,1.17799497]
[1761206901603,0.0002,3895.2,3895.1,0.6041]
[1761206901800,0.0002,3895.2,3895.1,0.1574]
[1761206902122,0.4582,3895.2,3895.1,1.009]
[1761206902337,0.4582,3895.2,3894.4,0.002]
[1761206902821,0.4582,3895.2,3894.5,2.157]
[1761206903135,0.4582,3895.2,3895.0,0.128]
[1761206903345,0.0002,3895.2,3895.0,0.128]
[1761206903638,0.0002,3895.2,3894.4,0.002]
[1761206903639,2.56739409,3895.0,3894.8,3.327]
[1761206904020,0.458,3894.9,3894.8,3.327]
[1761206905039,0.458,3894.9,3894.7,3.325]
[1761206907240,3.02548404,3894.9,3894.7,3.325]
[1761206907743,3.01082593,3894.8,3894.4,0.002]
[1761206907899,2.56767429,3894.6,3894.4,0.348]
[1761206908326,0.4433,3894.5,3894.4,0.348]
[1761206908527,3.01102371,3894.5,3894.4,0.348]
[1761206908835,0.4433,3894.5,3894.4,0.348]
[1761206911039,3.01102371,3894.5,3894.4,0.002]
[1761206912355,5.13688528,3894.5,3894.4,0.002]
[1761206913120,5.26488528,3894.5,3894.4,0.002]
[1761206913932,5.77176528,3894.5,3894.4,0.002]
[1761206917347,11.51922087,3894.5,3894.4,0.002]
[1761206925737,11.51842087,3894.5,3894.4,0.002]
[1761206927622,14.22342087,3894.5,3894.4,0.002]
[1761206930855,15.12838528,3894.5,3894.4,0.002]
[1761206931556,11.80217528,3894.5,3894.4,0.002]
[1761206933059,15.12838528,3894.5,3894.4,0.002]
[1761206933429,15.12838528,3894.5,3893.9,0.002]
[1761206933430,2.705,3894.1,3893.9,0.002]
[1761206933634,12.04024141,3894.0,3893.9,0.002]
[1761206933838,12.16904141,3894.0,3893.9,0.002]
[1761206934162,14.87404141,3894.0,3893.9,0.002]
[1761206936071,18.17704141,3894.0,3893.9,0.002]
[1761206939350,8.38312141,3894.0,3893.9,0.002]
[1761206939537,8.08514341,3894.0,3893.9,0.002]
[1761206939873,11.83985341,3894.0,3893.9,0.002]
[1761206940438,8.08514341,3894.0,3893.9,0.002]
[1761206940937,11.41135341,3894.0,3893.9,0.002]
[1761206941334,8.08514341,3894.0,3893.9,0.002]